bitfinex-derivatives/quotes_BTCF0:USTF0_20250508
["timestamp","ask_amount","ask_price","bid_price","bid_amount"]
[1746711294149,0.0502241,99539.0,99524.0,0.4009264]
[1746711294340,0.0333,99535.0,99525.0,0.0315]
[1746711294544,0.0502235,99540.0,99539.0,0.2008941]
[1746711294742,0.10181631,99545.0,99540.0,0.2008941]
[1746711294953,0.0502216,99544.0,99540.0,0.3908941]
[1746711295137,0.0647,99552.0,99540.0,0.3908941]
[1746711295138,0.10181631,99551.0,99540.0,0.4224941]
[1746711295543,0.2008861,99544.0,99540.0,0.4224941]
[1746711295850,0.236442,99541.0,99540.0,0.2324941]
[1746711296051,0.238442,99541.0,99540.0,0.2648941]
[1746711297350,0.240442,99541.0,99540.0,0.2648941]
[1746711298149,0.03955,99541.0,99540.0,0.4448941]
[1746711298853,0.240442,99541.0,99540.0,0.2648941]
[1746711299854,0.240442,99541.0,99539.0,0.08884]
[1746711299855,0.2008941,99540.0,99539.0,0.08884]
[1746711300154,0.2009041,99535.0,99523.0,0.050232]
[1746711300452,0.050232,99524.0,99520.0,0.0015069]
[1746711300641,0.2009324,99521.0,99520.0,0.1715069]
[1746711300846,0.2009324,99521.0,99520.0,0.2603469]
[1746711301041,0.1459325,99523.0,99520.0,0.2603469]
[1746711301042,0.0957,99523.0,99520.0,0.2603469]
[1746711301355,0.2009182,99531.0,99530.0,0.2009122]
[1746711301542,0.2009182,99531.0,99530.0,0.5617122]
[1746711301747,0.2009095,99533.0,99532.0,0.2511333]
[1746711301948,0.2009095,99533.0,99532.0,0.3809062]
[1746711302148,0.2009095,99533.0,99532.0,0.2009062]
[1746711302344,0.0502252,99537.0,99532.0,0.0304]
[1746711302559,0.03555,99541.0,99540.0,0.2008941]
[1746711302759,0.236442,99541.0,99540.0,0.8500541]
[1746711303448,0.236442,99541.0,99540.0,0.6500541]
[1746711303652,0.236442,99541.0,99540.0,0.6814541]
[1746711304361,0.238442,99541.0,99540.0,0.6814541]
[1746711304852,0.238442,99541.0,99540.0,0.48056]
[1746711305054,0.240442,99541.0,99540.0,0.48056]
[1746711305253,0.240442,99541.0,99540.0,0.6814541]
[1746711305455,0.240442,99541.0,99529.0,0.0502288]
[1746711305456,0.2009304,99522.0,99521.0,0.5617321]
[1746711305755,0.2009324,99521.0,99513.0,0.3608]
[1746711305951,0.2327324,99521.0,99520.0,0.0898669]
[1746711306150,0.4007324,99521.0,99520.0,0.0898669]
[1746711306352,0.7615324,99521.0,99520.0,0.0898669]
[1746711306555,0.7615324,99521.0,99520.0,0.0015069]
[1746711306763,1.1120124,99521.0,99520.0,0.0015069]
[1746711306951,1.1140124,99521.0,99520.0,0.0015069]
[1746711307147,1.1445124,99521.0,99520.0,0.0015069]
[1746711307755,0.8945124,99521.0,99520.0,0.0015069]
[1746711308859,0.8975124,99521.0,99520.0,0.0015069]
[1746711310461,0.173,99521.0,99520.0,0.2024413]
[1746711310656,0.3739324,99521.0,99520.0,0.2024413]
[1746711311257,0.2059324,99521.0,99520.0,0.2024413]
[1746711311455,0.005,99521.0,99520.0,0.2024413]
[1746711311651,0.005,99521.0,99520.0,0.3724413]
[1746711311861,0.005,99521.0,99520.0,0.4024413]
[1746711312055,0.005,99521.0,99520.0,0.2324413]
[1746711312963,0.005,99521.0,99520.0,0.4324413]
[1746711313159,0.005,99521.0,99520.0,0.6004413]
[1746711313360,0.12766754,99529.0,99528.0,0.2009183]
[1746711313559,0.12766754,99529.0,99528.0,0.7592083]
[1746711313867,0.03555,99541.0,99538.0,0.2008981]
[1746711314058,0.03555,99541.0,99538.0,0.9100581]
[1746711314261,1e-08,99541.0,99540.0,0.2008941]
[1746711314565,0.0318,99565.0,99564.0,0.2008456]
[1746711314758,0.2326436,99565.0,99564.0,0.2892056]
[1746711315955,0.2396436,99565.0,99564.0,0.08936]
[1746711316365,0.3400796,99565.0,99564.0,0.08936]
[1746711317165,0.3430796,99565.0,99564.0,0.08936]
[1746711317862,0.2386436,99565.0,99564.0,0.08836]
[1746711318261,0.4066436,99565.0,99564.0,0.08836]
[1746711318767,0.4066436,99565.0,99564.0,0.2892056]
[1746711319665,0.174,99565.0,99564.0,0.2892056]
[1746711320056,0.174,99565.0,99564.0,0.4572056]
[1746711320255,0.006,99565.0,99564.0,0.4572056]
[1746711321070,0.2048436,99565.0,99564.0,0.4572056]
[1746711321270,0.003,99565.0,99564.0,0.4572056]
[1746711321865,0.00251,99574.0,99573.0,0.2008275]
[1746711322064,0.10202461,99575.0,99574.0,0.2008255]
[1746711322265,0.03354153,99575.0,99574.0,0.3908255]
[1746711322464,0.03354153,99575.0,99574.0,0.5881535]
[1746711323171,0.03354153,99575.0,99574.0,0.7561535]
[1746711323377,0.01900123,99599.0,99598.0,0.2007771]
[1746711323575,0.17853166,99610.0,99609.0,0.2007549]
[1746711323876,0.17853166,99610.0,99609.0,0.5615549]
[1746711324077,0.17853166,99610.0,99609.0,0.6498749]
[1746711324272,0.37928456,99610.0,99609.0,0.44912]
[1746711324575,0.200767,99603.0,99602.0,0.08832]
[1746711324769,0.59510853,99603.0,99602.0,0.08832]
[1746711325775,0.2007932,99590.0,99586.0,0.3608]
[1746711326076,0.2007932,99590.0,99589.0,0.08982605]
[1746711326077,0.23433473,99590.0,99589.0,0.08982605]
[1746711326682,0.2008214,99576.0,99560.0,0.17873964]
[1746711326969,0.19865353,99590.0,99589.0,0.2007952]
[1746711326970,0.0647,99590.0,99589.0,0.2007952]
[1746711327176,0.2329932,99590.0,99589.0,0.2007952]
[1746711327370,0.26653473,99590.0,99589.0,0.2007952]
[1746711328180,0.4019932,99590.0,99589.0,0.2007952]
[1746711328379,0.43553473,99590.0,99589.0,0.2007952]
[1746711328977,0.169,99590.0,99589.0,0.2007952]
[1746711329373,0.168,99590.0,99589.0,0.2007952]
[1746711329681,0.169,99590.0,99589.0,0.2315952]
[1746711330387,0.17,99590.0,99589.0,0.2315952]
[1746711331079,0.001,99590.0,99589.0,0.2345952]
[1746711331271,0.2007721,99601.0,99600.0,0.200773]
[1746711331471,0.2007721,99601.0,99600.0,0.289093]
[1746711331678,0.23431363,99601.0,99600.0,0.289093]
[1746711332067,0.03354153,99601.0,99600.0,0.200773]
[1746711332272,0.0331,99606.0,99605.0,0.200763]
[1746711332477,0.2309476,99613.0,99609.0,0.0501883]
[1746711332778,0.2007488,99612.0,99611.0,0.2007509]
[1746711333282,0.20154153,99612.0,99611.0,0.2007509]
[1746711333875,0.20154153,99612.0,99611.0,0.2333509]
[1746711334381,0.168,99612.0,99611.0,0.2333509]
[1746711334876,0.169,99612.0,99611.0,0.5237429]
[1746711335275,0.001,99612.0,99611.0,0.5237429]
[1746711335472,0.001,99612.0,99611.0,0.2333509]
[1746711335780,0.23529033,99612.0,99611.0,0.09104]
[1746711335976,0.2007529,99610.0,99609.0,0.2315537]
[1746711336179,0.2007529,99610.0,99609.0,0.2917937]
[1746711336379,0.23429443,99610.0,99609.0,0.2007537]
[1746711336581,0.23429443,99610.0,99609.0,0.2917937]
[1746711336777,0.03354153,99610.0,99609.0,0.2917937]
[1746711336976,0.0314,99611.0,99610.0,0.2007529]
[1746711337177,0.0314,99611.0,99610.0,0.2637529]
[1746711337384,0.2321509,99611.0,99610.0,0.2637529]
[1746711337683,0.2321509,99611.0,99610.0,0.2315529]
[1746711337982,0.0314,99611.0,99610.0,0.2315529]
[1746711338183,0.2004,99611.0,99610.0,0.2315529]
[1746711338370,0.2004,99611.0,99610.0,0.2637529]
[1746711338580,0.169,99611.0,99610.0,0.2637529]
[1746711339183,0.001,99611.0,99610.0,0.2637529]
[1746711339585,0.0025,99618.0,99617.0,0.2007388]
[1746711339785,0.0025,99618.0,99617.0,0.5615388]
[1746711340187,0.1705,99618.0,99617.0,0.5615388]
[1746711340685,0.1725,99618.0,99617.0,0.5615388]
[1746711340887,0.1735,99618.0,99617.0,0.5615388]
[1746711342485,0.3742368,99618.0,99617.0,0.5615388]
[1746711342683,0.09364924,99618.0,99617.0,0.6619228]
[1746711342883,0.09364924,99618.0,99617.0,0.7529628]
[1746711343078,0.09364924,99618.0,99617.0,0.7838628]
[1746711343279,0.003,99618.0,99617.0,0.9738628]
[1746711343679,0.003,99618.0,99617.0,0.7838628]
[1746711343986,0.003,99618.0,99617.0,0.6834788]
[1746711344782,0.003,99618.0,99617.0,0.5924388]
[1746711344976,0.003,99618.0,99617.0,0.7234388]
[1746711345180,0.003,99618.0,99617.0,0.8238228]
[1746711345583,0.003,99618.0,99617.0,0.6834388]
[1746711345885,0.03654153,99618.0,99617.0,0.6834388]
[1746711346084,0.20454153,99618.0,99617.0,0.6834388]
[1746711346280,0.171,99618.0,99617.0,0.6834388]
[1746711346677,0.20454153,99618.0,99617.0,0.6834388]
[1746711349385,0.1427421,99618.0,99617.0,0.7838228]
[1746711349591,0.1782921,99618.0,99617.0,0.8238228]
[1746711350083,0.03555,99618.0,99617.0,0.7234388]
[1746711350474,0.03855,99618.0,99617.0,0.7234388]
[1746711351080,0.03755,99618.0,99617.0,0.6834388]
[1746711351885,0.2382868,99618.0,99617.0,0.6834388]
[1746711352386,0.03555,99618.0,99617.0,0.6834388]
[1746711353282,0.20355,99618.0,99617.0,0.6834388]
[1746711354784,0.20355,99618.0,99617.0,0.7334388]
[1746711355191,0.03555,99618.0,99617.0,0.7334388]
[1746711357198,0.03555,99618.0,99617.0,1.0038228]
[1746711357584,0.03555,99618.0,99617.0,0.8338228]
[1746711357892,0.0025,99627.0,99626.0,0.2007206]
[1746711358189,0.0312,99636.0,99626.0,0.5708]
[1746711358390,0.0501548,99677.0,99647.0,0.2006783]
[1746711358688,0.0501548,99677.0,99655.0,0.2006622]
[1746711358689,0.0927,99666.0,99655.0,0.2006622]
[1746711358889,0.0927,99666.0,99661.0,0.2006461]
[1746711358890,0.0501616,99664.0,99661.0,0.2006461]
[1746711359085,0.03354153,99656.0,99655.0,0.6116275]
[1746711359286,0.062,99663.0,99662.0,0.2006481]
[1746711359487,0.23419463,99660.0,99659.0,0.2006542]
[1746711360190,0.2006602,99656.0,99655.0,0.3618]
[1746711360384,0.23420173,99656.0,99655.0,0.4528]
[1746711360898,0.23420173,99656.0,99655.0,0.4518]
[1746711361092,0.26500173,99656.0,99655.0,0.091]
[1746711361397,0.0501679,99651.0,99646.0,0.3608]
[1746711361590,0.2006944,99639.0,99638.0,0.5614952]
[1746711361890,0.03354153,99639.0,99638.0,0.8424952]
[1746711362090,0.40223593,99639.0,99638.0,0.8424952]
[1746711362396,0.40223593,99639.0,99638.0,0.6418]
[1746711362584,0.46373593,99639.0,99638.0,0.6418]
[1746711362785,0.46373593,99639.0,99638.0,0.8451365]
[1746711363397,0.46373593,99639.0,99638.0,0.7514965]
[1746711363593,0.46373593,99639.0,99638.0,0.8461365]
[1746711364093,0.46373593,99639.0,99638.0,0.7571365]
[1746711364289,0.1988,99639.0,99638.0,0.7571365]
[1746711364494,0.23234153,99639.0,99638.0,0.6634965]
[1746711364695,0.43303593,99639.0,99638.0,0.7571365]
[1746711364895,0.20154153,99639.0,99638.0,0.7571365]
[1746711365193,0.168,99639.0,99638.0,0.9272365]
[1746711365780,0.168,99639.0,99638.0,0.9262365]
[1746711365985,0.168,99639.0,99638.0,0.7371365]
[1746711366292,0.20154153,99639.0,99638.0,0.7361365]
[1746711366493,0.40223593,99639.0,99638.0,0.7361365]
[1746711366793,0.20154153,99639.0,99638.0,0.7361365]
[1746711366996,0.20154153,99639.0,99638.0,0.7391365]
[1746711367190,0.40223593,99639.0,99638.0,0.62844]
[1746711367494,0.43373593,99639.0,99638.0,0.62644]
[1746711367694,0.43473593,99639.0,99638.0,0.74918946]
[1746711367889,0.43473593,99639.0,99638.0,0.65368454]
[1746711368295,0.43473593,99639.0,99638.0,0.85438104]
[1746711368487,0.43473593,99639.0,99638.0,0.85437974]
[1746711368689,0.23504153,99639.0,99638.0,0.85237974]
[1746711368883,0.23504153,99639.0,99638.0,0.89237974]
[1746711369084,0.23404153,99639.0,99638.0,0.89337974]
[1746711369288,0.23304153,99639.0,99638.0,0.89337974]
[1746711369493,0.23304153,99639.0,99638.0,0.89437974]
[1746711369895,0.23304153,99639.0,99638.0,0.85437974]
[1746711370093,0.23304153,99639.0,99638.0,0.85337974]
[1746711370289,0.23304153,99639.0,99638.0,0.85437974]
[1746711370796,0.43373593,99639.0,99638.0,0.85437974]
[1746711370991,0.23304153,99639.0,99638.0,0.85437974]
[1746711371793,0.23329487,99639.0,99638.0,0.85445412]
[1746711372300,0.23329487,99639.0,99638.0,0.88715412]
[1746711372600,0.15648608,99639.0,99638.0,1.06815412]
[1746711372896,0.15648608,99639.0,99638.0,1.16951812]
[1746711373202,0.00025334,99639.0,99638.0,1.16951812]
[1746711373396,0.00025334,99639.0,99638.0,1.17051812]
[1746711373589,0.0309,99664.0,99646.0,0.2006803]
[1746711373791,0.061,99663.0,99662.0,0.2006481]
[1746711374098,0.061,99663.0,99662.0,0.58876572]
[1746711374298,0.09454153,99663.0,99662.0,0.58876572]
[1746711374492,0.09454153,99663.0,99662.0,0.6044563]
[1746711374701,0.29518763,99663.0,99662.0,0.0430082]
[1746711375302,0.46318763,99663.0,99662.0,0.0430082]
[1746711376007,0.46318763,99663.0,99662.0,0.2436563]
[1746711376295,0.46318763,99663.0,99662.0,0.0430082]
[1746711376494,0.46318763,99663.0,99662.0,0.2436563]
[1746711376701,0.26254153,99663.0,99662.0,0.2436563]
[1746711377396,0.46318763,99663.0,99662.0,0.1472882]
[1746711378398,0.46318763,99663.0,99662.0,0.0430082]
[1746711378603,0.46318763,99663.0,99662.0,0.1472882]
[1746711378998,0.56352764,99663.0,99662.0,0.13173323]
[1746711379192,0.56352764,99663.0,99662.0,0.08183323]
[1746711380799,0.56352764,99663.0,99662.0,0.09752199]
[1746711381196,0.20154153,99663.0,99662.0,0.29817009]
[1746711382708,0.20154153,99663.0,99662.0,0.65897009]
[1746711383107,0.168,99663.0,99662.0,0.65897009]
[1746711383403,0.15858626,99663.0,99662.0,0.65897009]
[1746711383594,0.05933725,99663.0,99662.0,1.37071009]
[1746711383795,0.0025,99669.0,99668.0,0.2006361]
[1746711384002,0.002,99678.0,99677.0,0.2006179]
[1746711384200,0.002,99678.0,99677.0,0.60887113]
[1746711384500,0.002,99678.0,99677.0,0.60887286]
[1746711384701,0.002,99678.0,99677.0,0.58887286]
[1746711385207,0.2026159,99678.0,99677.0,0.60456162]
[1746711385405,0.002,99678.0,99677.0,0.40394372]
[1746711385608,0.002,99678.0,99677.0,0.60456162]
[1746711385812,0.002,99678.0,99677.0,0.60656162]
[1746711386200,0.17,99678.0,99677.0,0.60656162]
[1746711386705,0.17,99678.0,99677.0,0.60856162]
[1746711387409,0.17,99678.0,99677.0,0.24776162]
[1746711387812,0.17,99678.0,99677.0,0.31106162]
[1746711388212,0.17,99678.0,99677.0,0.31105819]
[1746711389013,0.20555,99678.0,99677.0,0.31105819]
[1746711389402,0.48963382,99678.0,99677.0,0.04714029]
[1746711389711,0.48963382,99678.0,99677.0,0.24775819]
[1746711389909,0.48963382,99678.0,99677.0,0.24775825]
[1746711390305,0.28901792,99678.0,99677.0,0.04714035]
[1746711390604,0.48963382,99678.0,99677.0,0.04714035]
[1746711391007,0.58995782,99678.0,99677.0,0.04714035]
[1746711391215,0.200634,99669.0,99668.0,0.3608]
[1746711391512,0.29351278,99669.0,99668.0,0.3608]
[1746711391810,0.29351278,99669.0,99668.0,0.5614361]
[1746711392113,0.26087878,99669.0,99668.0,0.5614361]
[1746711392800,0.17,99669.0,99668.0,0.5614361]
[1746711393410,0.26287878,99669.0,99668.0,0.5614361]
[1746711395019,0.17,99669.0,99668.0,0.5614361]
[1746711395415,0.16529457,99669.0,99668.0,0.6114361]
[1746711395613,0.25717335,99669.0,99668.0,0.5624361]
[1746711396018,0.45780735,99669.0,99668.0,0.5624361]
[1746711396213,0.45680735,99669.0,99668.0,0.5624361]
[1746711396419,0.25617335,99669.0,99668.0,0.5634361]
[1746711397011,0.45680735,99669.0,99668.0,0.5634361]
[1746711397925,0.25617335,99669.0,99668.0,0.5634361]
[1746711398222,0.25617335,99669.0,99668.0,0.5664361]
[1746711398422,0.45680735,99669.0,99668.0,0.5664361]
[1746711399319,0.25617335,99669.0,99668.0,0.5664361]
[1746711399723,0.16329457,99669.0,99668.0,0.5864361]
[1746711399915,0.16329457,99669.0,99668.0,0.5764361]
[1746711400314,0.16329457,99669.0,99668.0,0.6424361]
[1746711401213,0.45680735,99669.0,99668.0,0.5995361]
[1746711401413,0.45680735,99669.0,99668.0,0.3658]
[1746711401720,0.45680735,99669.0,99668.0,0.5664361]
[1746711402220,0.31837335,99669.0,99668.0,0.5664361]
[1746711402822,0.51900735,99669.0,99668.0,0.5664361]
[1746711403023,0.31837335,99669.0,99668.0,0.5664361]
[1746711403223,0.31837335,99669.0,99668.0,0.59348287]
[1746711403520,0.31837335,99669.0,99668.0,0.60916884]
[1746711404115,0.31837335,99669.0,99668.0,0.60916884]
[1746711404824,0.22549457,99669.0,99668.0,0.60916884]
[1746711405016,0.22549457,99669.0,99668.0,0.60937649]
[1746711406630,0.31837335,99669.0,99668.0,0.60537649]
[1746711406926,0.51900735,99669.0,99668.0,0.60537756]
[1746711407322,0.51900735,99669.0,99668.0,0.60837756]
[1746711408021,0.21837335,99669.0,99668.0,0.60837756]
[1746711408919,0.41900735,99669.0,99668.0,0.60837756]
[1746711410427,0.21837335,99669.0,99668.0,0.60837756]
[1746711410627,0.41900735,99669.0,99668.0,0.60837759]
[1746711411731,0.41900735,99669.0,99668.0,0.60836787]
[1746711412131,0.21837335,99669.0,99668.0,0.60836787]
[1746711412329,0.41900735,99669.0,99668.0,0.60836787]
[1746711412829,0.12549457,99669.0,99668.0,0.60836787]
[1746711413033,0.09359457,99669.0,99668.0,0.60836787]
[1746711413428,0.06329457,99669.0,99668.0,0.65146787]
[1746711414232,0.031,99674.0,99673.0,0.198126]
[1746711414435,0.01923734,99674.0,99673.0,0.2254603]
[1746711414621,0.01923734,99674.0,99673.0,0.24114627]
[1746711414828,0.014219,99674.0,99673.0,0.24114627]
[1746711415432,0.382843,99674.0,99673.0,0.24114627]
[1746711415633,0.182219,99674.0,99673.0,0.24114627]
[1746711415932,0.168,99674.0,99673.0,0.24114627]
[1746711416136,0.168,99674.0,99673.0,0.24126037]
[1746711416433,0.1988,99674.0,99673.0,0.24226037]
[1746711416635,0.1988,99674.0,99673.0,0.24326037]
[1746711417136,0.1988,99674.0,99673.0,0.24316037]
[1746711417923,0.2315,99674.0,99673.0,0.24316076]
[1746711419028,0.22397198,99674.0,99673.0,0.24315976]
[1746711419632,0.16047198,99674.0,99673.0,0.24315976]
[1746711419824,0.16047198,99674.0,99673.0,0.48315976]
[1746711420030,0.16047198,99674.0,99673.0,0.58348776]
[1746711420231,0.0314,99691.0,99690.0,0.2005918]
[1746711420439,0.12427878,99691.0,99690.0,0.22803959]
[1746711420635,0.32486858,99691.0,99690.0,0.24372556]
[1746711420934,0.35656858,99691.0,99690.0,0.04313142]
[1746711421236,0.62488058,99691.0,99690.0,0.04313142]
[1746711422234,0.62788058,99691.0,99690.0,0.04285306]
[1746711422430,0.63088058,99691.0,99690.0,0.24344486]
[1746711423529,0.53056858,99691.0,99690.0,0.24344486]
[1746711423933,0.53056858,99691.0,99690.0,0.04285306]
[1746711424141,0.63088058,99691.0,99690.0,0.04285306]
[1746711424839,0.63088058,99691.0,99690.0,0.24344486]
[1746711425642,0.53056858,99691.0,99690.0,0.23196196]
[1746711425939,0.53056858,99691.0,99690.0,0.03137016]
[1746711426130,0.53056858,99691.0,99690.0,0.23196196]
[1746711426533,0.53056858,99691.0,99690.0,0.24324873]
[1746711427435,0.53056858,99691.0,99690.0,0.22756454]
[1746711427738,0.53056858,99691.0,99690.0,0.2432449]
[1746711427929,0.53056858,99691.0,99690.0,0.0426531]
[1746711428130,0.63088058,99691.0,99690.0,0.0426531]
[1746711428735,0.63088058,99691.0,99690.0,0.03136633]
[1746711428928,0.63088058,99691.0,99690.0,0.0313677]
[1746711429336,0.0501534,99679.0,99674.0,0.15236]
[1746711429539,0.29350078,99675.0,99674.0,0.15236]
[1746711430130,0.2507843,99674.0,99673.0,0.2006253]
[1746711430331,0.2006542,99659.0,99658.0,0.561455]
[1746711430636,0.29353298,99659.0,99658.0,0.591555]
[1746711430837,0.28851409,99659.0,99658.0,0.591555]
[1746711431230,0.52171409,99659.0,99658.0,0.591555]
[1746711431835,0.52171409,99659.0,99658.0,0.3909]
[1746711432230,0.2006562,99658.0,99655.0,0.15214113]
[1746711432438,0.29353498,99658.0,99655.0,0.15214113]
[1746711432631,0.35713498,99658.0,99655.0,0.15214113]
[1746711433336,0.52513498,99658.0,99655.0,0.15214113]
[1746711433532,0.52513498,99658.0,99657.0,0.00550477]
[1746711434135,0.62547899,99658.0,99657.0,0.00550477]
[1746711434338,0.62547899,99658.0,99657.0,0.00350477]
[1746711435248,0.62547899,99658.0,99657.0,0.00150477]
[1746711436037,0.62747899,99658.0,99657.0,0.00150477]
[1746711436935,0.2006884,99642.0,99641.0,0.3608]
[1746711437238,0.3686884,99642.0,99641.0,0.3608]
[1746711437443,0.3686884,99642.0,99641.0,0.5614904]
[1746711437836,0.4312884,99642.0,99641.0,0.5614904]
[1746711438035,0.168,99642.0,99641.0,0.5614904]
[1746711438242,0.168,99642.0,99641.0,1.1984904]
[1746711438444,0.168,99642.0,99641.0,1.0284904]
[1746711439037,0.168,99642.0,99641.0,1.1994904]
[1746711439344,0.0501642,99658.0,99641.0,1.1994904]
[1746711439345,0.5614441,99664.0,99663.0,0.2006461]
[1746711439547,0.5614441,99664.0,99656.0,0.3608]
[1746711439548,0.2006582,99657.0,99656.0,0.3608]
[1746711439745,0.2006663,99653.0,99652.0,0.031]
[1746711440141,0.46154508,99653.0,99652.0,0.031]
[1746711440345,0.46154508,99653.0,99641.0,0.5118]
[1746711440346,0.2006884,99642.0,99641.0,0.5118]
[1746711440544,0.2006884,99642.0,99641.0,0.5098]
[1746711441137,0.3686884,99642.0,99641.0,0.5098]
[1746711441349,0.3686884,99642.0,99641.0,0.54117424]
[1746711441534,0.3686884,99642.0,99641.0,0.53917424]
[1746711441740,0.49186718,99642.0,99641.0,0.53917424]
[1746711442041,0.52236718,99642.0,99641.0,0.03137424]
[1746711442248,0.52236718,99642.0,99641.0,0.01768712]
[1746711442547,0.52236718,99642.0,99641.0,0.03337498]
[1746711442958,0.52236718,99642.0,99641.0,0.03537498]
[1746711443448,0.52236718,99642.0,99641.0,0.03337498]
[1746711443742,0.52236718,99642.0,99641.0,0.03137498]
[1746711443950,0.52236718,99642.0,99641.0,0.03137487]
[1746711444542,0.52236718,99642.0,99641.0,0.01568712]
[1746711444742,0.26087878,99642.0,99641.0,0.01568712]
[1746711444942,0.3686884,99642.0,99641.0,0.01568712]
[1746711445348,0.168,99642.0,99641.0,0.01568712]
[1746711445549,0.168,99642.0,99641.0,0.21637752]
[1746711446141,0.3686884,99642.0,99641.0,0.04648712]
[1746711446852,0.3686884,99642.0,99641.0,0.04748712]
[1746711447053,0.3686884,99642.0,99641.0,0.04848712]
[1746711448452,0.3686884,99642.0,99641.0,0.04748712]
[1746711448845,0.3686884,99642.0,99641.0,0.04648712]
[1746711449247,0.3686884,99642.0,99641.0,0.04748712]
[1746711449452,0.46156718,99642.0,99641.0,0.04748712]
[1746711450049,0.26087878,99642.0,99641.0,0.04648712]
[1746711450256,0.168,99642.0,99641.0,0.24717752]
[1746711450657,0.168,99642.0,99641.0,0.04648712]
[1746711450856,0.168,99642.0,99641.0,0.24717752]
[1746711451346,0.3686884,99642.0,99641.0,0.24717752]
[1746711451759,0.168,99642.0,99641.0,0.24717752]
[1746711452054,0.3686884,99642.0,99641.0,0.04648712]
[1746711452559,0.3686884,99642.0,99641.0,0.24817752]
[1746711452950,0.3686884,99642.0,99641.0,0.24917752]
[1746711453956,0.3686884,99642.0,99641.0,0.19448712]
[1746711454167,0.3686884,99642.0,99641.0,0.39617752]
[1746711454455,0.3686884,99642.0,99641.0,0.19448712]
[1746711454663,0.46156718,99642.0,99641.0,0.19548712]
[1746711455252,0.52476718,99642.0,99641.0,0.19548712]
[1746711455460,0.52476718,99642.0,99641.0,0.39617752]
[1746711455664,0.52476718,99642.0,99641.0,0.39517752]
[1746711456252,0.52476718,99642.0,99641.0,0.39617752]
[1746711456560,0.49226718,99642.0,99641.0,0.39617752]
[1746711456759,0.49226718,99642.0,99641.0,0.39517752]
[1746711456955,0.49226718,99642.0,99641.0,0.39417752]
[1746711457662,0.49226718,99642.0,99641.0,0.19348712]
[1746711458161,0.49226718,99642.0,99641.0,0.1778]
[1746711458553,0.49226718,99642.0,99641.0,0.3784904]
[1746711459151,0.52336718,99642.0,99641.0,0.1778]
[1746711459551,0.52336718,99642.0,99641.0,0.3784904]
[1746711461057,0.52336718,99642.0,99641.0,0.1778]
[1746711461453,0.52336718,99642.0,99641.0,0.3784904]
[1746711464556,0.52336718,99642.0,99641.0,0.0308]
[1746711464766,0.0501755,99636.0,99632.0,0.00200738]
[1746711464964,0.29358528,99633.0,99632.0,0.00200738]
[1746711465161,0.46158528,99633.0,99632.0,0.00200738]
[1746711465470,0.2007186,99627.0,99626.0,0.00150562]
[1746711465663,0.65439738,99627.0,99626.0,0.00150562]
[1746711465966,0.75477338,99627.0,99626.0,0.00150562]
[1746711466164,0.92277338,99627.0,99626.0,0.00150562]
[1746711466364,0.98627338,99627.0,99626.0,0.01688017]
[1746711466762,0.98627338,99627.0,99626.0,0.01888017]
[1746711467156,0.98627338,99627.0,99626.0,0.02188017]
[1746711467870,1.48627338,99627.0,99626.0,0.02188017]
[1746711468870,0.2007368,99618.0,99617.0,0.00200768]
[1746711469053,0.82241558,99618.0,99617.0,0.00200768]
[1746711469259,0.2007569,99608.0,99607.0,0.97264]
[1746711469563,0.2007569,99608.0,99605.0,0.033]
[1746711469564,0.2007609,99606.0,99605.0,0.033]
[1746711469761,0.2007609,99606.0,99605.0,0.233763]
[1746711470167,0.4299609,99606.0,99605.0,0.233763]
[1746711471666,0.5799609,99606.0,99605.0,0.233763]
[1746711471863,0.5799609,99606.0,99605.0,0.235763]
[1746711472061,0.168,99606.0,99605.0,0.235763]
[1746711472367,0.2007454,99619.0,99618.0,0.3010917]
[1746711472666,0.2707454,99619.0,99618.0,0.3010917]
[1746711472857,0.36362418,99619.0,99618.0,0.3010917]
[1746711473168,0.53162418,99619.0,99618.0,0.3010917]
[1746711473358,0.59422418,99619.0,99618.0,0.3010917]
[1746711473562,0.168,99619.0,99618.0,0.3010917]
[1746711474066,0.004,99619.0,99618.0,0.3010917]
[1746711474464,0.2047347,99619.0,99618.0,0.3010917]
[1746711479770,0.004,99619.0,99618.0,0.3010917]
[1746711480077,0.172,99619.0,99618.0,0.3010917]
[1746711480774,0.3727347,99619.0,99618.0,0.3010917]
[1746711481171,0.0501856,99616.0,99613.0,0.0501863]
[1746711481371,0.2816285,99615.0,99614.0,0.0323]
[1746711481573,0.3819428,99615.0,99614.0,0.0323]
[1746711481777,0.47482158,99615.0,99614.0,0.2330448]
[1746711481976,0.47482158,99615.0,99614.0,0.24873641]
[1746711482178,0.64282158,99615.0,99614.0,0.04799161]
[1746711482382,0.64282158,99615.0,99602.0,0.00200798]
[1746711482383,0.29364578,99603.0,99602.0,8e-08]
[1746711482571,0.2007952,99589.0,99582.0,0.0502022]
[1746711482873,0.47367398,99589.0,99581.0,0.0502024]
[1746711483072,0.2007972,99588.0,99583.0,0.2008065]
[1746711483268,0.49607598,99588.0,99579.0,0.34035996]
[1746711483673,0.52837598,99588.0,99580.0,0.0312]
[1746711484080,0.69637598,99588.0,99581.0,0.2008107]
[1746711484382,1.05717598,99588.0,99579.0,0.20411996]
[1746711484878,1.65759198,99588.0,99579.0,0.20411996]
[1746711485473,1.90759198,99588.0,99587.0,1e-08]
[1746711485778,2.55849198,99588.0,99587.0,1e-08]
[1746711487776,2.56149198,99588.0,99587.0,1e-08]
[1746711488381,2.56649198,99588.0,99587.0,1e-08]
[1746711489083,2.56549198,99588.0,99587.0,1e-08]
[1746711489579,0.29370628,99573.0,99572.0,9e-08]
[1746711489880,0.94450628,99573.0,99572.0,9e-08]
[1746711490276,1.11250628,99573.0,99572.0,9e-08]
[1746711490473,1.17650628,99573.0,99572.0,9e-08]
[1746711491275,1.17850628,99573.0,99572.0,9e-08]
[1746711491475,0.2008517,99561.0,99550.0,0.13628]
[1746711491782,0.2008577,99558.0,99551.0,0.0322]
[1746711491985,0.53373648,99558.0,99551.0,0.0322]
[1746711492183,0.2008698,99552.0,99551.0,0.0322]
[1746711492384,0.200888,99543.0,99542.0,0.00200919]
[1746711492580,0.711688,99543.0,99542.0,0.00200919]
[1746711492883,0.2009183,99528.0,99515.0,0.20411996]
[1746711493073,0.89459708,99528.0,99515.0,0.20411996]
[1746711493279,0.99507309,99528.0,99505.0,0.0634]
[1746711493675,0.2009728,99501.0,99482.0,0.39191293]
[1746711493879,0.65465158,99501.0,99482.0,0.0020104]
[1746711494076,1.26315558,99501.0,99482.0,0.0020104]
[1746711494280,0.0502465,99495.0,99482.0,0.0020104]
[1746711494584,0.65467178,99491.0,99482.0,0.0020104]
[1746711494795,1.01467178,99491.0,99482.0,0.0020104]